bitfinex/quotes_ETHUSD_20250415
["timestamp","ask_amount","ask_price","bid_price","bid_amount"]
[1744741250150,10.88526898,1609.0,1608.9,6.21542]
[1744741250347,4.70726898,1609.0,1608.9,6.76542]
[1744741250572,4.13307309,1609.0,1608.9,8.765977]
[1744741250925,4.13307309,1609.0,1608.9,8.82812392]
[1744741251606,4.13307309,1609.0,1608.9,8.765977]
[1744741252303,4.70805234,1609.0,1608.9,6.76542]
[1744741252492,0.57497925,1609.0,1608.9,6.76542]
[1744741252901,0.07497925,1609.0,1608.9,6.21542]
[1744741253203,0.07497925,1609.0,1608.8,12.43128]
[1744741253571,0.8119,1609.1,1608.8,12.43128]
[1744741254102,7.02656,1609.1,1608.8,6.21562]
[1744741254807,13.24138,1609.1,1608.8,6.21562]
[1744741254968,6.21542,1608.9,1608.5,12.43371]
[1744741255169,6.21586,1608.8,1608.5,6.21691]
[1744741255369,12.43183,1608.8,1608.5,6.21686]
[1744741255569,13.25228,1608.8,1608.5,6.21686]
[1744741255770,7.03626,1608.8,1608.5,6.21686]
[1744741256271,13.25222,1608.8,1608.5,6.21686]
[1744741256695,6.21688,1608.6,1608.2,7.00213]
[1744741256902,12.43332,1608.6,1608.3,6.21773]
[1744741257412,6.21658,1608.6,1608.3,12.43546]
[1744741257706,6.21704,1608.5,1608.2,6.21801]
[1744741257875,12.43353,1608.6,1608.2,12.43602]
[1744741258076,6.21658,1608.6,1608.3,6.21768]
[1744741258277,6.21627,1608.7,1608.4,6.21722]
[1744741258581,6.21627,1608.7,1608.4,12.43445]
[1744741258794,6.21627,1608.7,1608.4,6.21722]
[1744741259212,8.979132,1608.8,1608.4,6.21722]
[1744741259404,6.017,1608.7,1608.5,6.76691]
[1744741259604,10.01903,1609.0,1608.7,6.21619]
[1744741259801,6.017,1608.9,1608.7,12.43228]
[1744741260008,6.216,1608.8,1608.4,1.463022]
[1744741260185,6.21681,1608.6,1608.3,6.21741]
[1744741260385,6.98861,1608.6,1608.3,12.43505]
[1744741261586,0.7718,1608.6,1608.4,6.21729]
[1744741261787,6.98841,1608.6,1608.3,6.21741]
[1744741261993,6.21699,1608.5,1608.3,0.55]
[1744741262195,6.017,1608.4,1607.7,9.8335159]
[1744741262482,6.21863,1608.1,1607.8,6.21967]
[1744741262686,10.6256559,1608.3,1607.7,6.21996]
[1744741262895,6.2183,1608.2,1607.6,0.7563]
[1744741263110,4.4078959,1608.3,1607.8,6.21946]
[1744741263309,4.4078959,1608.3,1607.7,6.21995]
[1744741263310,6.21864,1608.1,1607.7,6.21995]
[1744741263540,6.21877,1608.1,1607.8,6.21962]
[1744741263700,6.21877,1608.1,1607.8,12.43916]
[1744741263902,12.43748,1608.1,1607.8,6.21954]
[1744741264098,6.21895,1608.0,1607.7,6.21999]
[1744741264447,6.2189,1608.0,1607.7,12.43987]
[1744741264603,3.44078959,1608.2,1607.6,0.7563]
[1744741264803,12.43967,1607.8,1607.4,7.04482]
[1744741265005,6.9808,1607.9,1607.5,12.44135]
[1744741265240,6.9808,1607.9,1607.5,6.22052]
[1744741265553,12.23592,1608.0,1607.7,6.22001]
[1744741266532,18.4551,1608.0,1607.7,6.22001]
[1744741266854,0.7,1607.9,1607.7,12.43996]
[1744741267059,0.7,1607.9,1607.8,6.76967]
[1744741267357,19.00188812,1608.4,1607.9,12.43798]
[1744741267358,7.01698,1608.3,1607.9,12.43798]
[1744741267522,7.01698,1608.3,1608.0,6.21883]
[1744741267950,0.7991,1608.3,1608.0,12.43762]
[1744741268254,7.01698,1608.3,1608.0,6.21879]
[1744741269447,13.23496,1608.3,1607.9,12.43852]
[1744741269754,6.21814,1608.2,1607.9,6.21926]
[1744741269932,6.21814,1608.2,1607.9,12.43844]
[1744741270134,6.21895,1608.0,1607.7,6.2199]
[1744741270331,6.21836,1608.2,1607.9,6.21916]
[1744741270656,0.7991,1608.3,1608.0,6.21871]
[1744741270814,0.7991,1608.3,1607.9,0.55]
[1744741271019,6.21862,1608.1,1607.8,6.21956]
[1744741271219,6.21853,1608.1,1607.8,6.21955]
[1744741271624,12.43683,1608.2,1607.9,6.21925]
[1744741271815,14.12177259,1608.2,1607.9,6.21925]
[1744741272219,6.21896,1608.0,1607.7,6.21997]
[1744741272423,6.21989,1607.8,1607.4,13.26183]
[1744741272620,6.21989,1607.8,1607.5,6.22083]
[1744741272854,6.21989,1607.8,1607.5,12.44166]
[1744741274081,12.43973,1607.8,1607.5,6.22083]
[1744741274281,13.683723,1607.8,1607.5,6.22083]
[1744741274486,6.22089,1607.5,1607.2,7.0263]
[1744741274787,6.22089,1607.5,1607.2,12.44358]
[1744741274984,12.23945,1607.6,1607.3,6.22143]
[1744741275183,12.23957,1607.6,1607.3,6.22143]
[1744741275394,6.019,1607.6,1607.1,0.02]
[1744741275575,6.98353,1607.3,1607.1,0.02]
[1744741275884,6.222,1607.2,1607.1,0.02]
[1744741276271,6.98348,1607.3,1607.1,0.02]
[1744741276473,6.222,1607.2,1607.1,0.02]
[1744741276888,15.8544959,1607.2,1607.1,0.02]
[1744741277191,22.51757249,1607.2,1607.1,0.02]
[1744741277582,22.98420265,1607.2,1607.1,0.02]
[1744741278172,6.22452,1606.6,1606.2,0.005]
[1744741278372,6.22484,1606.5,1606.2,0.005]
[1744741278702,6.021,1606.7,1606.5,6.22455]
[1744741278997,6.22377,1606.8,1606.4,6.77509]
[1744741279202,6.22406,1606.7,1606.4,0.55]
[1744741279408,12.44829,1606.7,1606.4,0.55]
[1744741279709,6.22406,1606.7,1606.4,0.55]
[1744741279875,12.4482,1606.7,1606.3,7.05173]
[1744741280085,6.22406,1606.7,1606.4,0.55]
[1744741280997,12.44823,1606.7,1606.4,0.55]
[1744741281202,7.5311207,1606.7,1606.4,0.55]
[1744741281386,7.5311207,1606.7,1606.2,6.2308]
[1744741281387,6.22478,1606.5,1606.2,6.23068]
[1744741281961,6.22525,1606.4,1606.2,0.005]
[1744741282293,6.22548,1606.3,1606.2,0.005]
[1744741282964,6.022,1606.5,1606.2,6.23085]
[1744741283365,6.022,1606.5,1606.4,6.22509]
[1744741283612,6.022,1606.5,1606.3,6.2253]
[1744741284603,6.022,1606.5,1606.2,13.0065]
[1744741285408,6.022,1606.5,1606.3,6.22548]
[1744741285608,12.24677,1606.5,1606.2,6.78073]
[1744741285905,12.24677,1606.5,1606.2,6.23073]
[1744741286208,6.022,1606.5,1606.2,6.23073]
[1744741286375,13.471491,1606.5,1606.2,0.005]
[1744741286718,12.45049,1606.4,1606.2,0.005]
[1744741287011,6.22516,1606.4,1606.2,0.005]
[1744741287217,12.45059,1606.4,1606.2,0.005]
[1744741287372,6.22516,1606.4,1606.2,0.005]
[1744741287580,6.22548,1606.3,1606.2,0.005]
[1744741288615,7.01468,1606.3,1606.2,0.005]
[1744741291906,7.01468,1606.3,1606.2,1e-05]
[1744741291907,10.01468,1606.3,1606.2,1e-05]
[1744741292477,10.58156958,1606.3,1606.2,1e-05]
[1744741292685,16.72652918,1606.3,1606.2,1e-05]
[1744741292913,16.1596396,1606.3,1606.2,1e-05]
[1744741293131,23.1027335,1606.3,1606.2,1e-05]
[1744741293293,6.22719,1605.9,1605.5,12.45696]
[1744741293628,6.22755,1605.8,1605.5,6.22848]
[1744741293835,6.22755,1605.8,1605.5,6.29075924]
[1744741294022,6.22755,1605.8,1605.5,0.06227924]
[1744741294325,6.22755,1605.8,1605.5,6.29078924]
[1744741294524,12.45518,1605.8,1605.5,6.29074924]
[1744741294726,12.45518,1605.8,1605.4,0.7945]
[1744741294727,6.22787,1605.7,1605.4,0.7945]
[1744741294930,6.22787,1605.7,1605.4,7.02346]
[1744741295435,5.985,1605.9,1605.7,6.22778]
[1744741295635,5.985,1605.9,1605.6,6.22818]
[1744741295838,18.43934,1605.9,1605.6,6.22818]
[1744741296038,12.21215,1605.9,1605.6,6.22818]
[1744741296333,18.43934,1605.9,1605.6,6.22818]
[1744741296708,5.985,1605.9,1605.6,6.22807]
[1744741296913,5.985,1605.9,1605.7,6.22766]
[1744741297138,6.22719,1605.9,1605.6,6.2282]
[1744741297338,6.2276,1605.8,1605.5,6.77846]
[1744741297639,6.22757,1605.8,1605.5,6.77846]
[1744741297840,6.22757,1605.8,1605.5,13.00694]
[1744741298009,6.22757,1605.8,1605.5,6.77846]
[1744741298221,6.22727,1605.9,1605.6,6.22819]
[1744741298419,6.22748,1605.8,1605.5,6.77846]
[1744741298606,0.8145,1605.8,1605.5,6.77846]
[1744741298805,13.675687,1605.9,1605.6,6.22816]
[1744741299018,6.22744,1605.8,1605.5,13.00694]
[1744741299218,13.675777,1605.9,1605.5,13.00694]
[1744741299902,7.04056,1606.2,1605.5,0.55]
[1744741300128,12.21227,1606.1,1605.8,13.23891]
[1744741300331,12.21227,1606.1,1605.8,7.01163]
[1744741300504,6.22669,1606.0,1605.6,0.7649]
[1744741300711,7.49536852,1606.0,1605.6,0.7649]
[1744741300948,13.72216852,1606.0,1605.7,6.22777]
[1744741301139,6.22705,1605.9,1605.6,13.2211]
[1744741301743,12.45599,1605.7,1605.3,7.04986]
[1744741301922,6.22886,1605.5,1605.3,0.8206]
[1744741302241,6.22975,1605.2,1605.1,0.02]
[1744741303313,7.06165,1605.2,1605.1,0.02]
[1744741304246,13.04865,1605.2,1605.1,0.02]
[1744741304423,13.61699247,1605.2,1605.1,0.02]
[1744741305923,0.56834247,1605.2,1605.1,0.02]
[1744741306127,6.55534247,1605.2,1605.1,0.02]
[1744741306329,5.987,1605.2,1605.1,0.02]
[1744741306881,54.551,1605.6,1605.1,0.57]
[1744741307151,54.551,1605.6,1605.2,6.22975]
[1744741307450,66.23446,1605.6,1605.3,6.22928]
[1744741308021,60.0061,1605.6,1605.4,6.22874]
[1744741308227,2.04457852,1606.0,1605.4,0.7899]
[1744741308431,5.988,1605.9,1605.5,6.19669553]
[1744741308629,6.22746,1605.8,1605.5,6.19669553]
[1744741308845,12.21542,1605.9,1605.6,6.228]
[1744741309656,0.56925592,1605.8,1605.6,12.45608]
[1744741310153,0.56925592,1605.8,1605.5,6.22847]
[1744741310351,0.56925592,1605.8,1605.6,6.22806]
[1744741310516,0.56925592,1605.8,1605.6,12.4561]
[1744741310728,0.56925592,1605.8,1605.7,6.22781]
[1744741311424,5.988,1605.9,1605.7,12.45562]
[1744741312161,5.988,1606.1,1605.9,6.22677]
[1744741312459,0.56969204,1606.0,1605.9,6.22677]
[1744741312660,0.56969204,1606.0,1605.9,6.83903239]
[1744741312958,0.56969204,1606.0,1605.9,7.60677]
[1744741313182,0.56969204,1606.3,1606.0,6.22647]
[1744741313323,0.56969204,1606.3,1606.1,6.22611]
[1744741313527,6.22511,1606.4,1606.1,12.45223]
[1744741313730,0.8149,1606.5,1606.0,6.2266]
[1744741313932,12.78328523,1606.4,1606.0,12.45312]
[1744741314260,6.22549,1606.3,1606.0,6.22652]
[1744741314444,0.56985523,1606.4,1606.3,6.22548]
[1744741314620,0.56985523,1606.4,1606.2,6.22575]
[1744741315043,0.56985523,1606.4,1606.0,6.77659]
[1744741315243,12.78270523,1606.5,1606.1,6.22625]
[1744741315450,6.2252,1606.4,1606.1,6.22625]
[1744741315651,8.69584075,1606.4,1606.1,6.22614]
[1744741315819,0.56985523,1606.3,1606.2,6.22586]
[1744741316029,6.22598,1606.2,1605.9,6.22688]
[1744741316457,6.22411,1606.7,1605.9,6.22688]
[1744741316458,0.8178,1607.0,1606.0,0.7608]
[1744741316667,12.21037,1606.9,1606.6,12.44845]
[1744741316877,12.21037,1606.9,1606.5,6.22453]
[1744741316878,6.22355,1606.8,1606.5,6.22453]
[1744741317023,6.22434,1606.6,1606.3,0.7608]
[1744741317219,12.44886,1606.6,1606.3,6.22547]
[1744741317463,6.22475,1606.5,1606.2,6.22574]
[1744741317623,6.22434,1606.6,1606.2,12.4515]
[1744741317823,1.453155,1606.7,1606.4,6.22477]
[1744741318057,0.57004546,1606.6,1606.4,6.22477]
[1744741318221,6.62004546,1606.6,1606.4,6.22477]
[1744741318428,13.27913,1606.7,1606.3,12.45074]
[1744741318626,13.10486,1606.7,1606.4,12.45005]
[1744741318825,8.813642,1606.7,1606.5,6.22454]
[1744741319059,6.8808,1606.7,1606.5,6.22454]
[1744741319256,6.22325,1606.9,1606.6,6.22427]
[1744741319461,18.49558,1606.9,1606.6,6.22427]
[1744741319764,0.56973804,1606.8,1606.6,6.22427]
[1744741320058,6.79347804,1606.8,1606.4,6.22507]
[1744741320264,6.22468,1606.6,1606.2,6.22576]
[1744741320464,6.22468,1606.6,1606.2,12.45148]
[1744741320465,6.79444804,1606.5,1606.2,12.45148]
[1744741320659,12.84344804,1606.5,1606.2,12.45148]
[1744741320864,6.22522,1606.4,1606.1,6.22614]
[1744741321171,14.3574638,1606.4,1606.1,6.22623]
[1744741321364,8.1321038,1606.4,1606.1,6.22623]
[1744741321550,8.1321038,1606.4,1606.1,6.22612]
[1744741321750,14.3573538,1606.4,1606.1,6.22612]
[1744741321978,1.9068838,1606.4,1606.2,6.22584]
[1744741322265,6.049,1606.5,1606.2,6.22573]
[1744741322436,6.049,1606.5,1606.4,6.22509]
[1744741323398,6.049,1606.7,1606.5,6.22438]
[1744741323897,6.049,1606.7,1606.6,6.22432]
[1744741324191,6.049,1607.0,1606.8,6.22348]
[1744741324994,12.27179,1607.0,1606.7,12.44775]
[1744741325198,6.22376,1606.8,1606.5,6.22461]
[1744741325493,0.8188,1606.8,1606.1,7.03185]
[1744741325697,6.2244,1606.6,1606.3,12.45067]
[1744741325899,13.517266,1606.6,1606.3,12.45067]
[1744741326075,6.22484,1606.5,1606.2,6.22576]
[1744741326271,12.44983,1606.5,1606.2,6.22576]
[1744741326600,6.22552,1606.3,1606.0,6.22649]
[1744741326777,12.45132,1606.3,1606.0,6.22649]
[1744741327099,13.696382,1606.3,1606.0,6.22649]
[1744741327400,7.470652,1606.3,1606.0,6.22649]
[1744741327598,1.245132,1606.3,1606.1,6.22626]
[1744741327807,13.26855,1606.5,1606.2,6.22576]
[1744741328166,6.22513,1606.4,1606.1,12.45252]
[1744741328366,6.22513,1606.4,1605.9,6.2269]
[1744741328367,7.0153,1606.3,1605.9,6.22674]
[1744741328565,6.048,1606.2,1605.9,12.45363]
[1744741328795,6.048,1606.2,1605.9,6.22674]
[1744741328999,6.048,1606.2,1606.0,6.22649]
[1744741329185,7.354338,1606.2,1606.0,6.22649]
[1744741329728,6.048,1606.5,1606.4,6.22509]
[1744741329922,6.048,1606.5,1606.2,7.04395]
[1744741330209,12.27274,1606.5,1606.2,13.26956]
[1744741330399,0.8286,1606.4,1606.2,6.22557]
[1744741330597,13.27916,1606.4,1606.0,6.22652]
[1744741330763,8.986496,1606.4,1606.1,6.22622]
[1744741330967,1.932716,1606.4,1606.2,6.2257]
[1744741331719,6.048,1606.5,1606.3,6.22531]
[1744741332006,0.8286,1606.4,1606.1,6.22599]
[1744741332505,0.8286,1606.4,1606.1,6.22597]
[1744741332679,7.05382,1606.4,1606.0,6.22654]
[1744741332890,7.05382,1606.4,1605.9,6.22697]
[1744741332891,6.931022,1606.3,1605.9,6.22697]
[1744741333082,6.22587,1606.2,1605.9,12.45388]
[1744741333303,6.931022,1606.3,1606.0,6.22663]
[1744741333638,6.22655,1606.1,1605.7,6.2278]
[1744741333931,7.05456,1606.2,1605.8,6.22704]
[1744741334139,6.805382,1606.3,1606.0,6.22644]
[1744741334322,6.22638,1606.1,1605.7,0.766]
[1744741334508,6.22624,1606.2,1605.8,6.22707]
[1744741334895,6.22624,1606.2,1605.9,6.22701]
[1744741335096,13.030932,1606.3,1605.9,6.22689]
[1744741335536,12.45216,1606.2,1605.7,6.99342]
[1744741335735,6.2264,1606.1,1605.7,13.22143]
[1744741336029,6.22679,1606.0,1605.7,0.766]
[1744741336215,6.8691,1606.1,1605.8,6.22729]
[1744741336414,6.22685,1606.0,1605.7,6.22773]
[1744741336614,6.22714,1605.9,1605.6,6.22803]
[1744741336817,1.309595,1606.0,1605.5,7.05197]
[1744741337132,6.22845,1605.6,1605.3,7.05267]
[1744741337331,6.22835,1605.6,1605.3,6.22932]
[1744741337506,6.22826,1605.6,1605.3,6.22925]
[1744741337833,6.22874,1605.5,1605.1,7.07345]
[1744741338004,6.22874,1605.5,1605.1,13.3035]
[1744741338206,1.308326,1605.6,1605.1,0.02]
[1744741338519,6.22953,1605.3,1605.1,0.02]
[1744741338720,12.27875,1605.2,1605.1,0.02]
[1744741339120,6.049,1605.2,1605.1,6.25014]
[1744741339636,6.049,1605.2,1605.1,0.02]
[1744741340009,12.88365,1605.2,1605.1,0.02]
[1744741340510,6.6539,1605.2,1605.1,0.02]
[1744741340811,12.88365,1605.2,1605.1,0.02]
[1744741341010,13.64045,1605.2,1605.1,0.02]
[1744741341333,14.20971648,1605.2,1605.1,0.02]
[1744741341735,13.64045,1605.2,1605.1,0.02]
[1744741342729,6.049,1605.2,1605.1,0.02]
[1744741343135,6.05,1605.5,1605.1,0.02]
[1744741343338,6.051,1605.5,1605.3,6.22909]
[1744741343534,6.051,1605.5,1605.2,6.29195099]
[1744741343733,12.2797,1605.5,1605.2,12.45925]
[1744741343937,6.051,1605.5,1605.3,6.22929]
[1744741344301,6.051,1605.5,1605.2,6.22967]
[1744741344502,12.27964,1605.5,1605.2,6.22967]
[1744741344702,6.22912,1605.4,1605.1,6.25005]
[1744741345036,6.22975,1605.2,1605.1,0.02]
[1744741345537,1.850793,1605.5,1605.1,0.02]
[1744741345738,24.60771,1605.6,1605.2,12.45928]
[1744741345942,6.22881,1605.5,1605.2,6.22964]
[1744741346655,12.27929,1605.6,1605.2,6.22962]
[1744741346957,9.9107,1605.8,1605.5,12.45688]
[1744741346958,6.8617,1605.8,1605.5,12.45688]
[1744741347102,13.08918,1605.8,1605.5,6.22844]
[1744741347561,6.8617,1605.8,1605.5,12.45688]
[1744741347706,6.051,1605.8,1605.7,6.22781]
[1744741347911,48.579,1606.0,1605.9,6.22703]
[1744741348243,54.661,1606.0,1605.9,6.22703]
[1744741348854,6.082,1606.0,1605.9,6.22703]
[1744741349149,4.13307309,1606.4,1606.3,6.22548]
[1744741349552,4.13307309,1606.6,1606.5,6.22471]
[1744741349761,4.13307309,1606.6,1606.5,7.06505094]
[1744741350254,4.13307309,1606.6,1606.5,7.00281]
[1744741350429,4.13307309,1606.6,1606.5,7.06505075]
[1744741350625,4.13307309,1606.6,1606.5,8.94404783]
[1744741351351,4.13307309,1606.6,1606.5,13.229194]
[1744741351527,4.13307309,1606.6,1606.5,13.16695325]
[1744741352556,7.83e-06,1607.0,1606.6,0.55]
[1744741352851,7.83e-06,1607.0,1606.9,14.80840617]
[1744741353218,13.19506,1607.9,1607.4,6.2209]
[1744741353744,13.19506,1607.9,1607.5,6.22082]
[1744741354366,0.7559,1607.9,1607.5,6.22082]
[1744741354547,6.97539,1607.9,1607.5,6.22082]
[1744741354864,7.672929,1607.9,1607.5,6.22082]
[1744741355075,6.2197,1607.8,1607.5,6.22082]
[1744741355232,6.2197,1607.8,1607.4,6.22116]
[1744741355433,6.2197,1607.8,1607.4,12.44222]
[1744741355636,6.2197,1607.8,1607.5,6.22078]
[1744741355940,13.11669,1608.1,1607.7,6.21992]
[1744741356139,19.33541,1608.1,1607.7,6.21992]
[1744741356441,13.11669,1608.1,1607.7,6.21992]
[1744741356761,6.21893,1608.0,1607.7,6.21992]
[1744741357570,12.43806,1608.0,1607.6,12.44076]
[1744741357747,6.21893,1608.0,1607.6,12.44071]
[1744741357942,6.21893,1608.0,1607.7,6.21989]
[1744741358835,12.43801,1608.0,1607.7,6.21989]
[1744741359371,6.8981,1608.1,1607.7,7.463912]
[1744741359562,6.079,1608.1,1607.9,12.43811]
[1744741359882,6.079,1608.1,1608.0,6.2189]
[1744741360085,6.8867,1608.4,1608.0,12.4378]
[1744741360238,6.21788,1608.3,1607.8,7.02739]
[1744741360750,19.32166,1608.4,1608.0,6.21887]
[1744741360967,15.036286,1608.4,1608.0,6.21887]
[1744741361189,15.036286,1608.4,1608.0,6.21874]
[1744741362459,15.036286,1608.4,1608.0,12.43747]
[1744741362661,8.818866,1608.4,1608.1,6.21827]
[1744741362911,6.096,1608.4,1608.1,12.43655]
[1744741363201,6.096,1608.4,1608.2,6.21807]
[1744741363401,6.096,1608.4,1608.3,6.21774]
[1744741363767,6.2376,1608.4,1608.0,6.21874]
[1744741364097,6.075,1608.3,1607.6,6.22044]
[1744741364297,7.01863,1608.1,1607.7,6.2199]
[1744741364499,6.2189,1608.0,1607.7,12.43983]
[1744741364809,6.2189,1608.0,1607.7,12.43985]
[1744741364977,13.23751,1608.1,1607.7,12.43985]
[1744741365179,7.01863,1608.1,1607.8,6.21966]
[1744741365363,13.23739,1608.1,1607.8,6.21966]
[1744741365564,6.21952,1607.9,1607.6,6.22034]
[1744741366374,12.43898,1607.9,1607.6,6.22034]
[1744741366576,6.21946,1607.9,1607.6,6.22034]
[1744741366779,12.43804,1608.0,1607.6,12.44067]
[1744741367278,12.439,1607.9,1607.6,6.22033]
[1744741367476,12.29244,1607.9,1607.6,6.22033]
[1744741367876,12.29244,1607.9,1607.6,6.22031]
[1744741368112,12.29244,1607.9,1607.6,12.44065]
[1744741369168,12.29244,1607.9,1607.6,6.22031]
[1744741370208,12.29244,1607.9,1607.6,12.44065]
[1744741370368,12.29244,1607.9,1607.6,6.22031]
[1744741370681,6.073,1607.9,1607.7,6.22005]
[1744741371607,6.073,1607.9,1607.7,12.43999]
[1744741372051,6.073,1607.9,1607.8,6.21967]
[1744741372917,6.073,1607.9,1607.7,12.43976]
[1744741373113,6.073,1607.9,1607.8,6.21967]
[1744741373699,12.29124,1608.2,1607.8,6.21967]
[1744741374003,18.50963,1608.2,1607.8,6.21938]
[1744741374216,18.50959,1608.2,1607.9,6.21923]
[1744741374567,0.02,1608.4,1608.3,6.21774]
[1744741374772,0.02,1608.4,1608.2,6.21794]
[1744741375017,0.02,1608.4,1608.1,6.21834]
[1744741375222,0.02,1608.4,1608.2,6.21797]
[1744741375419,0.02,1608.4,1608.2,12.43596]
[1744741375729,6.093,1608.4,1608.2,6.21797]
[1744741376221,6.093,1608.4,1608.2,12.43597]
[1744741377117,6.093,1608.4,1608.3,6.21774]
[1744741377681,6.66201282,1608.4,1608.3,6.21774]
[1744741377880,6.66201282,1608.4,1608.3,6.76774]
[1744741379109,0.58901282,1608.4,1608.3,6.76774]
[1744741379301,0.58901282,1608.4,1608.3,7.53194]
[1744741379498,0.58901282,1608.4,1608.3,9.6530817]
[1744741380325,1.16002817,1608.4,1608.3,9.6530817]
[1744741380520,1.16002817,1608.4,1608.3,9.71524996]
[1744741381020,1.16002817,1608.4,1608.3,9.6530817]
[1744741382320,1.16002817,1608.4,1608.2,6.21794]
[1744741382519,1.16002817,1608.4,1608.2,12.43594]
[1744741382695,0.57101535,1608.3,1608.2,6.21794]
[1744741382893,1.14002817,1608.3,1608.2,6.21794]
[1744741384750,1.14002817,1608.3,1608.2,6.83011672]
[1744741384950,1.14002817,1608.3,1608.2,8.75679239]
[1744741385349,1.14002817,1608.3,1608.2,8.69461567]
[1744741385517,1.14002817,1608.3,1608.2,8.75678998]
[1744741386816,1.14002817,1608.3,1608.2,9.51558998]
[1744741387020,1.14002817,1608.3,1608.2,9.45341567]
[1744741387336,0.57101535,1608.3,1608.2,9.45341567]
[1744741387557,0.02,1608.4,1608.3,6.21774]
[1744741387761,6.21784,1608.3,1607.8,0.7855]
[1744741388065,6.21864,1608.1,1607.8,6.21948]
[1744741388268,6.016,1608.2,1608.0,6.21886]
[1744741388417,0.57127246,1608.1,1608.0,6.21879]
[1744741388619,1.14253889,1608.1,1608.0,6.21879]
[1744741388967,1.14253889,1608.1,1608.0,7.59319]
[1744741389117,0.57127246,1608.1,1608.0,9.65853398]
[1744741389313,0.57127246,1608.3,1608.2,6.76813]
[1744741389529,1.14272094,1608.3,1608.2,6.8303029]
[1744741390360,9.4e-07,1608.4,1608.3,0.55]
[1744741390563,9.4e-07,1608.4,1608.3,12.68222642]
[1744741390765,9.4e-07,1608.4,1608.3,10.26198971]
[1744741390930,9.4e-07,1608.4,1608.3,6.79750329]
[1744741391126,9.4e-07,1608.4,1608.3,0.57976329]
[1744741391350,6.83640094,1608.4,1608.3,0.57976329]
[1744741391669,6.83640094,1608.4,1608.3,6.21774]
[1744741392182,6.01500094,1608.4,1608.3,6.21774]
[1744741392317,6.01500094,1608.4,1608.3,6.76774]
[1744741392740,6.01500094,1608.4,1608.2,6.21794]
[1744741392938,6.01500094,1608.4,1608.3,6.21774]
[1744741393146,6.01500094,1608.4,1608.3,6.76774]
[1744741393345,6.01500094,1608.4,1608.3,8.066308]
[1744741393561,9.4e-07,1608.4,1608.3,8.64612171]
[1744741393733,9.4e-07,1608.4,1608.3,8.70828931]
[1744741394371,9.4e-07,1608.4,1608.3,9.40362171]
[1744741395368,9.4e-07,1608.4,1608.3,9.46578317]
[1744741395522,9.4e-07,1608.4,1608.3,8.64612171]
[1744741396266,9.4e-07,1608.4,1608.3,6.79755371]
[1744741396934,9.4e-07,1608.4,1608.3,7.34755371]
[1744741397136,9.4e-07,1608.4,1608.3,7.40972559]
[1744741397866,9.4e-07,1608.4,1608.3,7.34755371]
[1744741398040,9.4e-07,1608.4,1608.3,7.40972102]
[1744741398240,9.4e-07,1608.4,1608.3,9.33211381]
[1744741398539,9.4e-07,1608.4,1608.3,17.44611068]
[1744741398740,9.4e-07,1608.4,1608.3,13.10851381]
[1744741399034,9.4e-07,1608.4,1608.3,8.78211381]
[1744741399241,9.4e-07,1608.4,1608.3,6.85972151]
[1744741399623,9.4e-07,1608.4,1608.3,7.40972151]
[1744741399825,9.4e-07,1608.4,1608.3,7.34755371]
[1744741400026,9.4e-07,1608.4,1608.3,7.40972477]
[1744741400468,12.98775094,1608.4,1608.3,0.57981371]
[1744741400672,17.90824003,1608.4,1608.3,0.57981371]
[1744741400821,0.8053,1607.9,1607.6,12.44082]
[1744741401031,6.8203,1607.9,1607.6,12.44082]
[1744741401266,6.8203,1607.9,1607.6,12.44075]
[1744741401469,6.8203,1607.9,1607.7,0.58036108]
[1744741402071,6.8203,1607.9,1607.6,12.44075]
[1744741402628,0.57191306,1607.8,1607.6,12.44075]
[1744741402834,1.14381195,1607.8,1607.6,12.44075]
[1744741403046,1.14381195,1607.8,1607.7,6.22006]
[1744741403250,0.57191306,1607.8,1607.7,6.22006]
[1744741403762,6.8203,1607.9,1607.7,6.22006]
[1744741404369,6.79163166,1607.8,1607.5,6.77076]
[1744741404578,6.2204,1607.7,1607.3,6.22146]
[1744741404828,6.79202821,1607.6,1607.3,12.44296]
[1744741405111,7.36384987,1607.6,1607.3,6.22146]
[1744741405405,6.016,1607.5,1607.3,12.44293]
[1744741406104,6.016,1607.5,1607.4,6.22122]
[1744741406465,6.016,1607.5,1607.4,6.77122]
[1744741406672,6.016,1607.5,1607.3,12.44289]
[1744741406872,6.016,1607.5,1607.3,12.44291]
[1744741407081,6.016,1607.5,1607.4,6.22122]
[1744741407288,6.22133,1607.4,1607.1,6.22224]
[1744741407497,12.44279,1607.4,1607.1,6.22224]
[1744741407701,7.0072,1607.3,1606.9,6.22304]
[1744741407873,13.22914,1607.3,1606.9,12.44609]
[1744741408072,7.0072,1607.3,1607.0,6.22276]
[1744741408274,0.7855,1607.3,1607.1,6.22202]
[1744741408496,0.7855,1607.3,1607.1,12.44427]
[1744741408810,7.00732,1607.3,1606.9,6.22306]
[1744741408969,0.7855,1607.3,1607.1,6.22222]
[1744741409607,0.7855,1607.3,1607.1,6.844442]
[1744741409806,6.8207,1607.5,1607.3,6.22133]
[1744741410294,6.016,1607.5,1607.4,6.22122]
[1744741410496,6.016,1607.5,1607.3,12.44279]
[1744741410811,6.016,1607.5,1607.3,12.44283]
[1744741411021,6.016,1607.5,1607.4,6.22122]
[1744741411367,6.016,1607.5,1607.4,8.015475]
[1744741412381,6.016,1607.5,1607.4,6.77122]
[1744741413385,6.016,1607.5,1607.4,7.65802516]
[1744741413589,0.7752,1607.9,1607.8,6.21967]